[Event "Titled Tuesday Blitz March 29 Early 2022"]
[White "Kaminski, Victor"]
[Black "Nazari, Arad"]
[WhiteFideId "1131630"]
[BlackFideId "12577324"]
[WhiteElo "2181"]
[BlackElo "2120"]
[Result "1-0"]
[Round "02"]
[TimeControl "180+1"]
[Date "2022.03.30"]
[WhiteClock "0:00:06"]
[BlackClock "0:00:53"]

1. e4 {[%clk 0:03:00]}  c5 {[%clk 0:02:56]} 2. Nf3 {[%clk 0:03:01]}  d6 {[%clk 0:02:57]} 3. Bb5+ {[%clk 0:02:59]}  Nd7 {[%clk 0:02:57]} 4. O-O {[%clk 0:02:58]}  a6 {[%clk 0:02:55]} 5. Bd3 {[%clk 0:02:57]}  g6 {[%clk 0:02:55]} 6. c3 {[%clk 0:02:52]}  Bg7 {[%clk 0:02:55]} 7. Bc2 {[%clk 0:02:52]}  Ngf6 {[%clk 0:02:56]} 8. Re1 {[%clk 0:02:51]}  O-O {[%clk 0:02:55]} 9. d4 {[%clk 0:02:52]}  e5 {[%clk 0:02:56]} 10. Nbd2 {[%clk 0:02:51]}  b5 {[%clk 0:02:55]} 11. a4 {[%clk 0:02:49]}  Bb7 {[%clk 0:02:55]} 12. Nf1 {[%clk 0:02:43]}  Qb6 {[%clk 0:02:53]} 13. Ng3 {[%clk 0:02:31]}  Rfd8 {[%clk 0:02:46]} 14. h4 {[%clk 0:02:25]}  h5 {[%clk 0:02:44]} 15. Bg5 {[%clk 0:02:24]}  Re8 {[%clk 0:02:42]} 16. d5 {[%clk 0:02:17]}  Ng4 {[%clk 0:02:39]} 17. Nh2 {[%clk 0:02:10]}  Ndf6 {[%clk 0:02:34]} 18. Nxg4 {[%clk 0:01:58]}  Nxg4 {[%clk 0:02:35]} 19. Nf1 {[%clk 0:01:48]}  f6 {[%clk 0:02:29]} 20. Bd2 {[%clk 0:01:46]}  c4 {[%clk 0:02:27]} 21. Ne3 {[%clk 0:01:41]}  Nxe3 {[%clk 0:02:24]} 22. Bxe3 {[%clk 0:01:42]}  Qc7 {[%clk 0:02:24]} 23. Qd2 {[%clk 0:01:30]}  Qd7 {[%clk 0:02:22]} 24. f3 {[%clk 0:01:27]}  f5 {[%clk 0:02:17]} 25. exf5 {[%clk 0:01:28]}  gxf5 {[%clk 0:02:16]} 26. Bg5 {[%clk 0:01:23]}  Qf7 {[%clk 0:02:10]} 27. Rad1 {[%clk 0:01:14]}  Bc8 {[%clk 0:02:05]} 28. Qe2 {[%clk 0:01:03]}  Bf6 {[%clk 0:01:50]} 29. f4 {[%clk 0:00:51]}  Bg7 {[%clk 0:01:38]} 30. Qf2 {[%clk 0:00:44]}  e4 {[%clk 0:01:33]} 31. Qb6 {[%clk 0:00:43]}  Qa7 {[%clk 0:01:26]} 32. Qxa7 {[%clk 0:00:37]}  Rxa7 {[%clk 0:01:27]} 33. Ra1 {[%clk 0:00:37]}  b4 {[%clk 0:01:27]} 34. cxb4 {[%clk 0:00:34]}  Bxb2 {[%clk 0:01:28]} 35. Ra2 {[%clk 0:00:34]}  Bc3 {[%clk 0:01:25]} 36. Rb1 {[%clk 0:00:32]}  Bd7 {[%clk 0:01:24]} 37. Bd1 {[%clk 0:00:26]}  Kf7 {[%clk 0:01:21]} 38. Bxh5+ {[%clk 0:00:26]}  Kg7 {[%clk 0:01:20]} 39. Bxe8 {[%clk 0:00:25]}  Bxe8 {[%clk 0:01:21]} 40. Rc2 {[%clk 0:00:23]}  Bd4+ {[%clk 0:01:21]} 41. Kh2 {[%clk 0:00:18]}  c3 {[%clk 0:01:22]} 42. b5 {[%clk 0:00:13]}  axb5 {[%clk 0:01:20]} 43. axb5 {[%clk 0:00:13]}  Kg6 {[%clk 0:01:18]} 44. b6 {[%clk 0:00:12]}  Rb7 {[%clk 0:01:19]} 45. Bd8 {[%clk 0:00:13]}  e3 {[%clk 0:01:13]} 46. Rb4 {[%clk 0:00:12]}  Bc5 {[%clk 0:01:05]} 47. Rc4 {[%clk 0:00:12]}  e2 {[%clk 0:01:03]} 48. Rxe2 {[%clk 0:00:10]}  Bb5 {[%clk 0:01:03]} 49. Re6+ {[%clk 0:00:11]}  Kf7 {[%clk 0:01:00]} 50. Rxc3 {[%clk 0:00:11]}  Bd7 {[%clk 0:00:57]} 51. Re7+ {[%clk 0:00:11]}  Kg6 {[%clk 0:00:55]} 52. Rg3+ {[%clk 0:00:11]}  Kh6 {[%clk 0:00:54]} 53. h5 {[%clk 0:00:05]}  Bc8 {[%clk 0:00:52]} 54. Rg6+ {[%clk 0:00:05]}  Kxh5 {[%clk 0:00:52]} 55. Rxb7 {[%clk 0:00:06]}  Bxb7 {[%clk 0:00:53]} 56. Rg7 {[%clk 0:00:06]}  Bxd5 {[%clk 0:00:53]} 57. b7 {[%clk 0:00:06]}  Ba7 {[%clk 0:00:54]} 58. Bc7 {[%clk 0:00:06]}  Bxb7 {[%clk 0:00:53]} 59. Bxd6 {[%clk 0:00:06]} 1-0


[Site "https://www.chess.com"]

[Event "Titled Tuesday Blitz March 29 Early 2022"]
[White "Karavaeva, Olga"]
[Black "Shandrygin, Nikita"]
[WhiteFideId "4124111"]
[BlackFideId "24198668"]
[WhiteElo "2105"]
[BlackElo "2324"]
[Result "0-1"]
[Round "02"]
[TimeControl "180+1"]
[Date "2022.03.30"]
[WhiteClock "0:02:15"]
[BlackClock "0:01:25"]

1. c4 {[%clk 0:03:00]}  Nf6 {[%clk 0:02:58]} 2. Nc3 {[%clk 0:03:00]}  d5 {[%clk 0:02:59]} 3. cxd5 {[%clk 0:03:00]}  Nxd5 {[%clk 0:03:00]} 4. Nf3 {[%clk 0:03:00]}  g6 {[%clk 0:02:49]} 5. g3 {[%clk 0:03:00]}  Bg7 {[%clk 0:02:47]} 6. Bg2 {[%clk 0:03:00]}  O-O {[%clk 0:02:48]} 7. O-O {[%clk 0:02:59]}  Nc6 {[%clk 0:02:47]} 8. d4 {[%clk 0:02:58]}  Nxc3 {[%clk 0:02:40]} 9. bxc3 {[%clk 0:02:59]}  e5 {[%clk 0:02:41]} 10. d5 {[%clk 0:02:57]}  Ne7 {[%clk 0:02:41]} 11. e4 {[%clk 0:02:57]}  b6 {[%clk 0:02:36]} 12. Qb3 {[%clk 0:02:48]}  a5 {[%clk 0:02:35]} 13. a4 {[%clk 0:02:47]}  Ba6 {[%clk 0:02:32]} 14. Rd1 {[%clk 0:02:47]}  Nc8 {[%clk 0:02:29]} 15. Ba3 {[%clk 0:02:47]}  Re8 {[%clk 0:02:27]} 16. c4 {[%clk 0:02:46]}  Nd6 {[%clk 0:02:25]} 17. c5 {[%clk 0:02:46]}  bxc5 {[%clk 0:02:22]} 18. Bxc5 {[%clk 0:02:47]}  Qd7 {[%clk 0:02:23]} 19. Qc3 {[%clk 0:02:41]}  Nxe4 {[%clk 0:02:16]} 20. Qxa5 {[%clk 0:02:41]}  Be2 {[%clk 0:02:10]} 21. Qb4 {[%clk 0:02:39]}  Nxc5 {[%clk 0:02:05]} 22. Qxc5 {[%clk 0:02:35]}  Bxd1 {[%clk 0:01:51]} 23. Rxd1 {[%clk 0:02:36]}  Rxa4 {[%clk 0:01:48]} 24. Rc1 {[%clk 0:02:36]}  e4 {[%clk 0:01:38]} 25. Ng5 {[%clk 0:02:35]}  Bd4 {[%clk 0:01:27]} 26. Qxc7 {[%clk 0:02:23]}  Qxc7 {[%clk 0:01:26]} 27. Rxc7 {[%clk 0:02:24]}  e3 {[%clk 0:01:27]} 28. Nxf7 {[%clk 0:02:15]}  exf2+ {[%clk 0:01:25]} 0-1


[Site "https://www.chess.com"]

[Event "Titled Tuesday Blitz March 29 Early 2022"]
[White "Karolczuk, Iwo"]
[Black "Garcia Fuentes, Sergio Miguel"]
[WhiteFideId "21816972"]
[BlackFideId "7300549"]
[WhiteElo "2243"]
[BlackElo "2167"]
[Result "1-0"]
[Round "02"]
[TimeControl "180+1"]
[Date "2022.03.30"]
[WhiteClock "0:02:24"]
[BlackClock "0:00:19"]

1. e4 {[%clk 0:02:59]}  e5 {[%clk 0:02:58]} 2. Nf3 {[%clk 0:02:59]}  Nc6 {[%clk 0:02:57]} 3. Bb5 {[%clk 0:02:57]}  Nf6 {[%clk 0:02:56]} 4. d3 {[%clk 0:02:56]}  Bc5 {[%clk 0:02:54]} 5. Nbd2 {[%clk 0:02:55]}  O-O {[%clk 0:02:45]} 6. Nc4 {[%clk 0:02:54]}  d6 {[%clk 0:02:42]} 7. h3 {[%clk 0:02:53]}  Ne7 {[%clk 0:02:08]} 8. Ne3 {[%clk 0:02:48]}  c6 {[%clk 0:01:12]} 9. Ba4 {[%clk 0:02:45]}  Be6 {[%clk 0:01:01]} 10. c3 {[%clk 0:02:43]}  h6 {[%clk 0:00:56]} 11. O-O {[%clk 0:02:41]}  Bb6 {[%clk 0:00:49]} 12. Bc2 {[%clk 0:02:39]}  Qc8 {[%clk 0:00:43]} 13. Kh2 {[%clk 0:02:37]}  Ng6 {[%clk 0:00:36]} 14. d4 {[%clk 0:02:36]}  Rd8 {[%clk 0:00:33]} 15. Nf5 {[%clk 0:02:33]}  d5 {[%clk 0:00:30]} 16. Nxe5 {[%clk 0:02:25]}  Nxe5 {[%clk 0:00:19]} 17. Ne7+ {[%clk 0:02:24]} 1-0


[Site "https://www.chess.com"]

[Event "Titled Tuesday Blitz March 29 Early 2022"]
[White "Kejzar, Petra"]
[Black "Shtyka, Sergey"]
[WhiteFideId "14610213"]
[BlackFideId "4138465"]
[WhiteElo "2003"]
[BlackElo "2014"]
[Result "0-1"]
[Round "02"]
[TimeControl "180+1"]
[Date "2022.03.30"]
[WhiteClock "0:01:38"]
[BlackClock "0:01:41"]

1. e4 {[%clk 0:02:54]}  c5 {[%clk 0:02:58]} 2. Nf3 {[%clk 0:02:54]}  d6 {[%clk 0:02:58]} 3. Nc3 {[%clk 0:02:54]}  Nc6 {[%clk 0:02:57]} 4. d4 {[%clk 0:02:54]}  cxd4 {[%clk 0:02:58]} 5. Nxd4 {[%clk 0:02:54]}  g6 {[%clk 0:02:57]} 6. Be2 {[%clk 0:02:52]}  Bg7 {[%clk 0:02:57]} 7. Be3 {[%clk 0:02:52]}  Nf6 {[%clk 0:02:57]} 8. f3 {[%clk 0:02:52]}  O-O {[%clk 0:02:57]} 9. O-O {[%clk 0:02:52]}  d5 {[%clk 0:02:56]} 10. Nxc6 {[%clk 0:02:50]}  bxc6 {[%clk 0:02:56]} 11. e5 {[%clk 0:02:47]}  Ne8 {[%clk 0:02:54]} 12. f4 {[%clk 0:02:46]}  f6 {[%clk 0:02:52]} 13. exf6 {[%clk 0:02:41]}  exf6 {[%clk 0:02:51]} 14. Bc5 {[%clk 0:02:39]}  Rf7 {[%clk 0:02:49]} 15. Bd3 {[%clk 0:02:34]}  f5 {[%clk 0:02:46]} 16. Rb1 {[%clk 0:02:21]}  Nd6 {[%clk 0:02:44]} 17. Ne2 {[%clk 0:02:17]}  Ne4 {[%clk 0:02:37]} 18. Bxe4 {[%clk 0:02:15]}  fxe4 {[%clk 0:02:37]} 19. Nd4 {[%clk 0:02:13]}  Bd7 {[%clk 0:02:29]} 20. c4 {[%clk 0:01:52]}  Qa5 {[%clk 0:02:12]} 21. b4 {[%clk 0:01:50]}  Qxa2 {[%clk 0:02:12]} 22. cxd5 {[%clk 0:01:48]}  Qxd5 {[%clk 0:02:09]} 23. Qe2 {[%clk 0:01:43]}  Bxd4+ {[%clk 0:02:07]} 24. Kh1 {[%clk 0:01:39]}  Bxc5 {[%clk 0:02:06]} 25. Rbd1 {[%clk 0:01:38]}  Bd4 {[%clk 0:01:41]} 0-1


[Site "https://www.chess.com"]

[Event "Titled Tuesday Blitz March 29 Early 2022"]
[White "Khamzin, Olzhas"]
[Black "Vokhidov, Shamsiddin"]
[WhiteFideId "13701690"]
[BlackFideId "14204223"]
[WhiteElo "2194"]
[BlackElo "2611"]
[Result "0-1"]
[Round "02"]
[TimeControl "180+1"]
[Date "2022.03.29"]
[WhiteClock "0:00:55"]
[BlackClock "0:01:39"]

1. d4 {[%clk 0:03:00]}  Nf6 {[%clk 0:03:00]} 2. Nc3 {[%clk 0:03:01]}  d5 {[%clk 0:03:00]} 3. Bg5 {[%clk 0:03:01]}  Nbd7 {[%clk 0:02:59]} 4. e3 {[%clk 0:03:02]}  e6 {[%clk 0:02:57]} 5. Qf3 {[%clk 0:03:02]}  Bb4 {[%clk 0:02:53]} 6. Ne2 {[%clk 0:03:00]}  c5 {[%clk 0:02:50]} 7. O-O-O {[%clk 0:03:00]}  c4 {[%clk 0:02:50]} 8. g4 {[%clk 0:02:54]}  Qa5 {[%clk 0:02:49]} 9. Bxf6 {[%clk 0:02:52]}  Nxf6 {[%clk 0:02:43]} 10. g5 {[%clk 0:02:52]}  Ne4 {[%clk 0:02:44]} 11. Nxe4 {[%clk 0:02:53]}  dxe4 {[%clk 0:02:44]} 12. Qxe4 {[%clk 0:02:53]}  Qxa2 {[%clk 0:02:45]} 13. c3 {[%clk 0:02:54]}  Be7 {[%clk 0:02:42]} 14. h4 {[%clk 0:02:53]}  Bd7 {[%clk 0:02:42]} 15. d5 {[%clk 0:02:35]}  exd5 {[%clk 0:02:29]} 16. Qb1 {[%clk 0:01:43]}  Qxb1+ {[%clk 0:02:14]} 17. Kxb1 {[%clk 0:01:44]}  h6 {[%clk 0:02:13]} 18. Bg2 {[%clk 0:01:36]}  hxg5 {[%clk 0:02:11]} 19. hxg5 {[%clk 0:01:37]}  Rxh1 {[%clk 0:02:11]} 20. Bxh1 {[%clk 0:01:36]}  O-O-O {[%clk 0:02:07]} 21. Rxd5 {[%clk 0:01:32]}  Rh8 {[%clk 0:02:04]} 22. Rd1 {[%clk 0:01:30]}  Rh2 {[%clk 0:02:02]} 23. Bd5 {[%clk 0:01:27]}  Rxf2 {[%clk 0:02:01]} 24. Bxc4 {[%clk 0:01:27]}  Bxg5 {[%clk 0:02:00]} 25. e4 {[%clk 0:01:23]}  Bg4 {[%clk 0:01:58]} 26. Rd5 {[%clk 0:01:09]}  Bxe2 {[%clk 0:01:41]} 27. Bxe2 {[%clk 0:01:05]}  Rxe2 {[%clk 0:01:42]} 28. Rxg5 {[%clk 0:01:06]}  g6 {[%clk 0:01:43]} 29. Rg4 {[%clk 0:01:04]}  Kd7 {[%clk 0:01:42]} 30. Ka2 {[%clk 0:01:04]}  Ke6 {[%clk 0:01:42]} 31. Rf4 {[%clk 0:01:02]}  f6 {[%clk 0:01:39]} 32. Rg4 {[%clk 0:00:57]}  g5 {[%clk 0:01:39]} 33. Kb3 {[%clk 0:00:55]}  Ke5 {[%clk 0:01:39]} 0-1


[Site "https://www.chess.com"]

[Event "Titled Tuesday Blitz March 29 Early 2022"]
[White "Kiltti, Jyrki"]
[Black "Posthuma, Joshua"]
[WhiteFideId "501204"]
[BlackFideId "2096889"]
[WhiteElo "2245"]
[BlackElo "2176"]
[Result "0-1"]
[Round "02"]
[TimeControl "180+1"]
[Date "2022.03.30"]
[WhiteClock "0:00:50"]
[BlackClock "0:00:32"]

1. Nc3 {[%clk 0:03:00]}  g6 {[%clk 0:02:58]} 2. h4 {[%clk 0:02:59]}  Nf6 {[%clk 0:02:58]} 3. e4 {[%clk 0:02:59]}  d6 {[%clk 0:02:54]} 4. h5 {[%clk 0:02:59]}  Nxh5 {[%clk 0:02:53]} 5. Rxh5 {[%clk 0:02:59]}  gxh5 {[%clk 0:02:54]} 6. Qxh5 {[%clk 0:02:59]}  e6 {[%clk 0:02:46]} 7. Nf3 {[%clk 0:02:59]}  Qf6 {[%clk 0:02:43]} 8. d4 {[%clk 0:02:59]}  Qg6 {[%clk 0:02:40]} 9. Qh2 {[%clk 0:02:59]}  Nc6 {[%clk 0:02:36]} 10. Be3 {[%clk 0:02:56]}  Bd7 {[%clk 0:02:31]} 11. O-O-O {[%clk 0:02:54]}  O-O-O {[%clk 0:02:31]} 12. Bd3 {[%clk 0:02:53]}  h5 {[%clk 0:02:24]} 13. e5 {[%clk 0:02:51]}  Qg4 {[%clk 0:02:22]} 14. Ne4 {[%clk 0:02:43]}  dxe5 {[%clk 0:02:16]} 15. Nf6 {[%clk 0:02:40]}  Qg7 {[%clk 0:02:11]} 16. dxe5 {[%clk 0:02:39]}  Be7 {[%clk 0:02:07]} 17. Bg5 {[%clk 0:02:31]}  Nd4 {[%clk 0:01:56]} 18. Bh4 {[%clk 0:02:21]}  Bc6 {[%clk 0:01:46]} 19. Nxd4 {[%clk 0:02:14]}  Rxd4 {[%clk 0:01:47]} 20. g3 {[%clk 0:02:12]}  Rhd8 {[%clk 0:01:17]} 21. f4 {[%clk 0:02:11]}  Bb5 {[%clk 0:00:47]} 22. Qe2 {[%clk 0:01:50]}  Bxd3 {[%clk 0:00:45]} 23. Rxd3 {[%clk 0:01:50]}  Rxd3 {[%clk 0:00:44]} 24. cxd3 {[%clk 0:01:51]}  Qg6 {[%clk 0:00:44]} 25. Kc2 {[%clk 0:01:41]}  Bxf6 {[%clk 0:00:44]} 26. Bxf6 {[%clk 0:01:41]}  Rd5 {[%clk 0:00:44]} 27. Bh4 {[%clk 0:01:36]}  b6 {[%clk 0:00:43]} 28. b4 {[%clk 0:01:29]}  c5 {[%clk 0:00:37]} 29. a3 {[%clk 0:01:20]}  c4 {[%clk 0:00:36]} 30. Kc3 {[%clk 0:00:51]}  Qxd3+ {[%clk 0:00:32]} 31. Qxd3 {[%clk 0:00:50]}  cxd3 {[%clk 0:00:32]} 32. Kd2 {[%clk 0:00:50]}  Kb7 {[%clk 0:00:32]} 0-1


[Site "https://www.chess.com"]

[Event "Titled Tuesday Blitz March 29 Early 2022"]
[White "Korchmar, Vasiliy"]
[Black "Mortazavi, Ali"]
[WhiteFideId "24131750"]
[BlackFideId "401323"]
[WhiteElo "2370"]
[BlackElo "2339"]
[Result "0-1"]
[Round "02"]
[TimeControl "180+1"]
[Date "2022.03.29"]
[WhiteClock "0:00:03"]
[BlackClock "0:00:21"]

1. d4 {[%clk 0:03:00]}  Nf6 {[%clk 0:02:59]} 2. Bf4 {[%clk 0:03:00]}  g6 {[%clk 0:02:59]} 3. Nc3 {[%clk 0:03:00]}  Bg7 {[%clk 0:03:00]} 4. e4 {[%clk 0:02:59]}  d6 {[%clk 0:03:01]} 5. Qd2 {[%clk 0:02:59]}  Nc6 {[%clk 0:03:01]} 6. O-O-O {[%clk 0:02:54]}  a6 {[%clk 0:02:58]} 7. Bh6 {[%clk 0:02:52]}  O-O {[%clk 0:02:44]} 8. h4 {[%clk 0:02:47]}  Bxh6 {[%clk 0:02:43]} 9. Qxh6 {[%clk 0:02:46]}  Ng4 {[%clk 0:02:43]} 10. Qd2 {[%clk 0:02:44]}  h5 {[%clk 0:02:43]} 11. f3 {[%clk 0:02:38]}  Nf6 {[%clk 0:02:44]} 12. Qh6 {[%clk 0:02:31]}  e5 {[%clk 0:02:31]} 13. Bc4 {[%clk 0:02:09]}  d5 {[%clk 0:01:57]} 14. Nxd5 {[%clk 0:01:56]}  Nxd4 {[%clk 0:01:54]} 15. c3 {[%clk 0:01:43]}  b5 {[%clk 0:01:48]} 16. cxd4 {[%clk 0:00:56]}  bxc4 {[%clk 0:01:44]} 17. dxe5 {[%clk 0:00:56]}  Nxd5 {[%clk 0:01:43]} 18. exd5 {[%clk 0:00:52]}  c3 {[%clk 0:01:32]} 19. bxc3 {[%clk 0:00:39]}  Qe7 {[%clk 0:01:32]} 20. e6 {[%clk 0:00:31]}  Qa3+ {[%clk 0:01:24]} 21. Kd2 {[%clk 0:00:29]}  Qb2+ {[%clk 0:01:18]} 22. Kd3 {[%clk 0:00:21]}  Bxe6 {[%clk 0:01:10]} 23. Rd2 {[%clk 0:00:08]}  Qb1+ {[%clk 0:00:51]} 24. Ke2 {[%clk 0:00:09]}  Bxd5 {[%clk 0:00:39]} 25. Kf2 {[%clk 0:00:08]}  Rae8 {[%clk 0:00:37]} 26. Nh3 {[%clk 0:00:04]}  Qxh1 {[%clk 0:00:31]} 27. Kg3 {[%clk 0:00:04]}  Qe1+ {[%clk 0:00:31]} 28. Rf2 {[%clk 0:00:04]}  Re5 {[%clk 0:00:23]} 29. f4 {[%clk 0:00:02]}  Rf5 {[%clk 0:00:22]} 30. Ng5 {[%clk 0:00:02]}  Rxg5+ {[%clk 0:00:22]} 31. Qxg5 {[%clk 0:00:03]}  Qe3+ {[%clk 0:00:21]} 0-1


[Site "https://www.chess.com"]

[Event "Titled Tuesday Blitz March 29 Early 2022"]
[White "Kosteniuk, Alexandra"]
[Black "Aaditya Dhingra"]
[WhiteFideId "4128125"]
[BlackFideId "25678191"]
[WhiteElo "2469"]
[BlackElo "1849"]
[Result "1/2-1/2"]
[Round "02"]
[TimeControl "180+1"]
[Date "2022.03.29"]
[WhiteClock "0:00:56"]
[BlackClock "0:00:25"]

1. d4 {[%clk 0:03:00]}  Nf6 {[%clk 0:02:59]} 2. Nf3 {[%clk 0:03:01]}  e6 {[%clk 0:02:58]} 3. c4 {[%clk 0:03:01]}  Bb4+ {[%clk 0:02:57]} 4. Nbd2 {[%clk 0:03:00]}  b6 {[%clk 0:02:56]} 5. g3 {[%clk 0:02:59]}  Bb7 {[%clk 0:02:55]} 6. Bg2 {[%clk 0:02:59]}  O-O {[%clk 0:02:49]} 7. O-O {[%clk 0:03:00]}  d5 {[%clk 0:02:40]} 8. Ne5 {[%clk 0:02:56]}  Nbd7 {[%clk 0:02:38]} 9. f4 {[%clk 0:02:56]}  Bd6 {[%clk 0:02:25]} 10. e3 {[%clk 0:02:49]}  c5 {[%clk 0:02:22]} 11. g4 {[%clk 0:02:49]}  Ne4 {[%clk 0:02:16]} 12. Nxe4 {[%clk 0:02:45]}  dxe4 {[%clk 0:02:15]} 13. Nxd7 {[%clk 0:02:45]}  Qxd7 {[%clk 0:02:14]} 14. dxc5 {[%clk 0:02:46]}  bxc5 {[%clk 0:02:14]} 15. b3 {[%clk 0:02:36]}  Rad8 {[%clk 0:01:53]} 16. Bb2 {[%clk 0:02:36]}  f5 {[%clk 0:01:50]} 17. Qe2 {[%clk 0:02:23]}  Qc7 {[%clk 0:01:32]} 18. Rad1 {[%clk 0:02:19]}  a5 {[%clk 0:01:27]} 19. Rd2 {[%clk 0:02:18]}  Be7 {[%clk 0:01:15]} 20. Rfd1 {[%clk 0:02:08]}  Rxd2 {[%clk 0:01:13]} 21. Rxd2 {[%clk 0:02:07]}  Rd8 {[%clk 0:01:13]} 22. Bh3 {[%clk 0:02:06]}  Bc8 {[%clk 0:01:08]} 23. Qd1 {[%clk 0:02:00]}  Rxd2 {[%clk 0:01:07]} 24. Qxd2 {[%clk 0:02:01]}  Qd8 {[%clk 0:01:05]} 25. Qxd8+ {[%clk 0:01:45]}  Bxd8 {[%clk 0:01:06]} 26. Be5 {[%clk 0:01:41]}  Kf7 {[%clk 0:01:02]} 27. Bd6 {[%clk 0:01:41]}  Bb6 {[%clk 0:01:00]} 28. Kf2 {[%clk 0:01:40]}  Bd7 {[%clk 0:00:58]} 29. Kg3 {[%clk 0:01:37]}  g6 {[%clk 0:00:57]} 30. a4 {[%clk 0:01:34]}  Bc6 {[%clk 0:00:55]} 31. Bf1 {[%clk 0:01:34]}  Bd7 {[%clk 0:00:55]} 32. Be2 {[%clk 0:01:34]}  Bc6 {[%clk 0:00:51]} 33. h4 {[%clk 0:01:34]}  Bd7 {[%clk 0:00:45]} 34. h5 {[%clk 0:01:35]}  Bc6 {[%clk 0:00:44]} 35. Be5 {[%clk 0:01:28]}  Bd7 {[%clk 0:00:42]} 36. Bc3 {[%clk 0:01:28]}  Bc6 {[%clk 0:00:41]} 37. Kh3 {[%clk 0:01:28]}  Bd7 {[%clk 0:00:41]} 38. Be1 {[%clk 0:01:29]}  Bd8 {[%clk 0:00:39]} 39. Bc3 {[%clk 0:01:19]}  Bc7 {[%clk 0:00:38]} 40. Kh4 {[%clk 0:01:12]}  Bd8+ {[%clk 0:00:38]} 41. g5 {[%clk 0:01:13]}  Bc7 {[%clk 0:00:37]} 42. hxg6+ {[%clk 0:01:13]}  hxg6 {[%clk 0:00:37]} 43. Kg3 {[%clk 0:01:13]}  Bc6 {[%clk 0:00:36]} 44. Kf2 {[%clk 0:01:13]}  Bd7 {[%clk 0:00:36]} 45. Ke1 {[%clk 0:01:14]}  Bc6 {[%clk 0:00:35]} 46. Kd2 {[%clk 0:01:14]}  Bd7 {[%clk 0:00:34]} 47. Bf6 {[%clk 0:01:14]}  Bc6 {[%clk 0:00:32]} 48. Kc3 {[%clk 0:01:15]}  Bb6 {[%clk 0:00:29]} 49. Kc2 {[%clk 0:01:14]}  Bc7 {[%clk 0:00:29]} 50. Kb2 {[%clk 0:01:14]}  Ke8 {[%clk 0:00:29]} 51. Ka2 {[%clk 0:01:12]}  Kf7 {[%clk 0:00:29]} 52. Bc3 {[%clk 0:01:12]}  Ke8 {[%clk 0:00:28]} 53. Bd1 {[%clk 0:01:11]}  Kf7 {[%clk 0:00:26]} 54. Bd2 {[%clk 0:01:09]}  Ke8 {[%clk 0:00:26]} 55. Bc2 {[%clk 0:01:06]}  Kf7 {[%clk 0:00:25]} 56. Bc3 {[%clk 0:01:06]}  Ke8 {[%clk 0:00:25]} 57. Bf6 {[%clk 0:01:00]}  Kf7 {[%clk 0:00:25]} 58. Kb2 {[%clk 0:00:59]}  Ke8 {[%clk 0:00:25]} 59. Kc3 {[%clk 0:00:56]} 1/2-1/2


[Site "https://www.chess.com"]

[Event "Titled Tuesday Blitz March 29 Early 2022"]
[White "Kouskoutis, Georgios-Alexandros"]
[Black "Priasmoro, Novendra"]
[WhiteFideId "4234049"]
[BlackFideId "7105029"]
[WhiteElo "2130"]
[BlackElo "2309"]
[Result "0-1"]
[Round "02"]
[TimeControl "180+1"]
[Date "2022.03.29"]
[WhiteClock "0:00:01"]
[BlackClock "0:00:17"]

1. c4 {[%clk 0:03:00]}  c5 {[%clk 0:02:59]} 2. g3 {[%clk 0:03:00]}  Nc6 {[%clk 0:03:00]} 3. Bg2 {[%clk 0:03:01]}  g6 {[%clk 0:03:00]} 4. Nc3 {[%clk 0:03:01]}  Bg7 {[%clk 0:03:01]} 5. e4 {[%clk 0:03:01]}  e5 {[%clk 0:03:00]} 6. Nge2 {[%clk 0:03:01]}  Nge7 {[%clk 0:03:01]} 7. O-O {[%clk 0:03:02]}  O-O {[%clk 0:03:02]} 8. Rb1 {[%clk 0:02:56]}  d6 {[%clk 0:03:03]} 9. a3 {[%clk 0:02:56]}  Be6 {[%clk 0:03:03]} 10. d3 {[%clk 0:02:57]}  Qd7 {[%clk 0:03:01]} 11. b4 {[%clk 0:02:55]}  b6 {[%clk 0:03:01]} 12. Be3 {[%clk 0:02:31]}  Nd4 {[%clk 0:02:56]} 13. Bxd4 {[%clk 0:02:23]}  cxd4 {[%clk 0:02:57]} 14. Nd5 {[%clk 0:02:23]}  Nxd5 {[%clk 0:02:47]} 15. cxd5 {[%clk 0:02:06]}  Bh3 {[%clk 0:02:48]} 16. Qb3 {[%clk 0:02:04]}  Bxg2 {[%clk 0:02:42]} 17. Kxg2 {[%clk 0:02:05]}  f5 {[%clk 0:02:42]} 18. f3 {[%clk 0:02:01]}  Rac8 {[%clk 0:02:41]} 19. Rbc1 {[%clk 0:01:56]}  Bh6 {[%clk 0:02:42]} 20. Rc6 {[%clk 0:01:50]}  fxe4 {[%clk 0:02:35]} 21. dxe4 {[%clk 0:01:42]}  Kg7 {[%clk 0:02:34]} 22. b5 {[%clk 0:01:39]}  Rf6 {[%clk 0:02:28]} 23. Qc2 {[%clk 0:01:30]}  Rff8 {[%clk 0:02:14]} 24. Nc1 {[%clk 0:01:12]}  Kh8 {[%clk 0:02:00]} 25. Nd3 {[%clk 0:01:09]}  Be3 {[%clk 0:02:00]} 26. a4 {[%clk 0:01:02]}  h5 {[%clk 0:01:51]} 27. h3 {[%clk 0:00:56]}  Rxc6 {[%clk 0:01:37]} 28. dxc6 {[%clk 0:00:45]}  Qf7 {[%clk 0:01:37]} 29. Nb4 {[%clk 0:00:35]}  h4 {[%clk 0:01:34]} 30. gxh4 {[%clk 0:00:28]}  g5 {[%clk 0:01:27]} 31. c7 {[%clk 0:00:16]}  Rc8 {[%clk 0:01:16]} 32. Nd5 {[%clk 0:00:17]}  gxh4 {[%clk 0:01:12]} 33. Kh1 {[%clk 0:00:17]}  Qe6 {[%clk 0:01:07]} 34. Qg2 {[%clk 0:00:15]}  Bh6 {[%clk 0:01:07]} 35. Qg4 {[%clk 0:00:05]}  Qe8 {[%clk 0:01:05]} 36. Rd1 {[%clk 0:00:02]}  Qf8 {[%clk 0:00:54]} 37. Kg2 {[%clk 0:00:01]}  Re8 {[%clk 0:00:46]} 38. Ne7 {[%clk 0:00:01]}  Qxe7 {[%clk 0:00:34]} 39. c8=Q {[%clk 0:00:02]}  Rxc8 {[%clk 0:00:35]} 40. Qxc8+ {[%clk 0:00:02]}  Kg7 {[%clk 0:00:35]} 41. Qg4+ {[%clk 0:00:03]}  Kh7 {[%clk 0:00:36]} 42. Kh1 {[%clk 0:00:03]}  Be3 {[%clk 0:00:35]} 43. Qh5+ {[%clk 0:00:03]}  Kg7 {[%clk 0:00:35]} 44. Qg4+ {[%clk 0:00:03]}  Kh6 {[%clk 0:00:35]} 45. Qf5 {[%clk 0:00:03]}  Qg7 {[%clk 0:00:33]} 46. Qg4 {[%clk 0:00:03]}  Qf6 {[%clk 0:00:34]} 47. Kg2 {[%clk 0:00:03]}  Qe7 {[%clk 0:00:28]} 48. Kf1 {[%clk 0:00:03]}  Qc7 {[%clk 0:00:25]} 49. Qxh4+ {[%clk 0:00:03]}  Kg7 {[%clk 0:00:26]} 50. Qg4+ {[%clk 0:00:03]}  Kf8 {[%clk 0:00:26]} 51. Qf5+ {[%clk 0:00:02]}  Kg7 {[%clk 0:00:26]} 52. Qg4+ {[%clk 0:00:02]}  Kh7 {[%clk 0:00:27]} 53. Qh5+ {[%clk 0:00:02]}  Bh6 {[%clk 0:00:26]} 54. f4 {[%clk 0:00:01]}  exf4 {[%clk 0:00:20]} 55. Rxd4 {[%clk 0:00:01]}  Qc1+ {[%clk 0:00:20]} 56. Qd1 {[%clk 0:00:01]}  Qe3 {[%clk 0:00:20]} 57. Rxd6 {[%clk 0:00:02]}  Qxh3+ {[%clk 0:00:20]} 58. Ke2 {[%clk 0:00:02]}  Qg4+ {[%clk 0:00:17]} 59. Kd3 {[%clk 0:00:01]}  Qxd1+ {[%clk 0:00:17]} 0-1


[Site "https://www.chess.com"]